Workbook

Sheet Ark1
A1: Månedsløn pr 1/4 2023 | B1: Reguleringsfaktor | C1: 1.498304
A5: Børnehaveklasseledere ny løn | B5: excl. diverse tillæg** | C5: Løntrin | D5: Tillæg | E5: I alt
A6: 0-4 års erfaring | B6: Trin 28 + tillæg | C6: 28392.75 | D6: =4000/12*C1 -> 499.4346667 | E6: =C6+D6 -> 28892.18467
A7: 4-8 års erfaring | B7: Trin 31 + tillæg | C7: 29844.58 | D7: =4000/12*C1 -> 499.4346667 | E7: =C7+D7 -> 30344.01467
A8: 8-12 års erfaring | B8: Trin 33 | C8: 30866.92 | D8: =2000/12*C1 -> 249.7173333 | E8: =C8+D8 -> 31116.63733
A9: Over 12 års erfaring | B9: Trin 37 | C9: 33051.58 | D9: =2000/12*C1 -> 249.7173333 | E9: =C9+D9 -> 33301.29733
A10: Undervisertillæg | B10: Børnehaveklasseledere | C10: =15400/12*C1 -> 1922.823467 | E10: =C10*C1 -> 2880.974091
A11: Børnehaveklasseledere anc. løn | B11: excl. diverse tillæg** | C11: Løntrin | D11: Tillæg | E11: I alt
A12: Pr def over 12 års erfaring | B12: Trin 36 | C12: 32487.5 | D12: =6600/12*C1 -> 824.0672 | E12: =C12+D12 -> 33311.5672
A13: Undervisertillæg | B13: Børnehaveklasseledere | C13: =15400/12*C1 -> 1922.823467 | E13: =C13*C1 -> 2880.974091
A15: Lærere ny løn | B15: excl. diverse tillæg** | C15: Løntrin | D15: Tillæg | E15: I alt
A16: 0-4 års erfaring | B16: Trin 31 + tillæg | C16: 29844.58 | D16: =3000/12*C1 -> 374.576 | E16: =C16+D16 -> 30219.156
A17: 4-8 års erfaring | B17: Trin 35 + tillæg | C17: 31935.33 | D17: =3000/12*C1 -> 374.576 | E17: =C17+D17 -> 32309.906
A18: 8-12 års erfaring | B18: Trin 40 | C18: 34866.42 | E18: =C18+D18 -> 34866.42
A19: Over 12 års erfaring | B19: Trin 40 + tillæg | C19: 34866.42 | D19: =10000/12*C1 -> 1248.586667 | E19: =C19+D19 -> 36115.00667
A21: Lærere anc. løn | B21: excl. diverse tillæg** | C21: Løntrin | D21: Tillæg | E21: I alt
A22: Pr def over 12 års erfaring | B22: Trin 43 + tillæg | C22: 36939.42 | D22: =13000/12*C1 -> 1623.162667 | E22: =C22+D22 -> 38562.58267
A25: Plus pension af tillæg, hvis du har bedt om at få dette udbetalt (tj.mænd)*** | C25: =D22*0.17 -> 275.9376533
A26: *** På lønsedlen kaldet "Frit valg"
A28: ** Diverse tillæg:
A30: Tillæg til alle:
A32: Selvstyrende team | B32: Alle | C32: =6431/12*C1 -> 802.9660853
A33: Korrigeres IKKE med besk.grad | B33: Tjenestemænd i gl. Hammel/Hinnerup
B34: får dette beløb som trin 44
A35: Favrskovtillæg | B35: Ny løn | C35: =5140*C1/12 -> 641.7735467
A36: Fleksibilitetstillæg | B36: Ny løn | C36: =18242/12*C1 -> 2277.671797
A37: Korrigeres med besk.grad | B37: Anc.løn | C37: =5140/12*C1 -> 641.7735467
A39: Favrskovtillægget indeholder blandt andet arbejde mellem kl. 17 - 06
A41: Centralt lærertillæg | B41: Med finansierer løntrinnet
A43: Fritvalgstillæg | B43: 1,38% af pensionsgivende løn, derfor varierende | C43: knap 500,00
A44: Undervisertillæg | B44: Ny løn | C44: =13000/12*C1 -> 1623.162667
A45: fra time 299 - 750 | B45: Anc.løn | C45: =5500*C1/12 -> 686.7226667
A47: Tillæg til nogle:
A49: Undervisning i dansk som andetsprog (udbetales med 1/12 pr. måned) | C49: =25.84*C1 -> 38.71617536
A50: Specialundervisningstillæg | C50: =32.43*C1 -> 48.58999872
A51: Tillæg for diplomuddannelse | C51: =6200/12*C1 -> 774.1237333
A52: Undervisningstillæg for mere end 750 t udbetales pr. time (1/12 pr. måned) | C52: =90*C1 -> 134.84736
A53: Frit valg (kun for nogle tjenestemænd). Se "Lærere anc.løn"

Sheet Ark2

Sheet Ark3
